bitfinex/quotes_SOLUSD_20250529
["timestamp","ask_amount","ask_price","bid_price","bid_amount"]
[1748541252594,21.42639893,169.09,169.08,2.19545096]
[1748541252793,22.92889893,169.09,169.08,2.19545096]
[1748541252995,28.84290922,169.09,169.08,2.19545096]
[1748541255829,47.49255808,169.09,169.08,2.19545096]
[1748541257009,47.49255808,169.09,168.96,21.42639893]
[1748541257010,24.77074886,169.08,168.96,21.42639893]
[1748541257222,24.77074886,169.08,168.98,26.0]
[1748541257223,21.42639893,169.01,168.98,26.0]
[1748541257594,21.42639893,168.99,168.95,3.15504914]
[1748541257791,18.64964886,169.06,168.95,3.15504914]
[1748541257792,21.42639893,168.98,168.95,3.15504914]
[1748541258015,21.42639893,168.98,168.96,26.0]
[1748541258233,21.42639893,168.99,168.96,26.0]
[1748541258398,18.64964886,169.06,168.95,3.15504914]
[1748541258399,21.42639893,168.97,168.95,3.15504914]
[1748541258597,21.42639893,168.96,168.91,21.42639893]
[1748541258803,21.42639893,168.96,168.92,26.0]
[1748541259012,5.91891092,168.95,168.92,26.0]
[1748541259394,27.34530985,168.95,168.93,26.0]
[1748541259732,5.91891092,168.95,168.93,26.0]
[1748541259899,20.91418585,169.0,168.94,21.42639893]
[1748541260099,5.91750991,168.99,168.94,0.28432314]
[1748541260411,36.21716118,169.03,168.98,21.42639893]
[1748541260592,14.79076225,169.03,168.99,21.42639893]
[1748541261123,20.70687181,169.03,168.96,0.28432314]
[1748541261297,20.70687181,169.03,168.95,47.42639893]
[1748541261620,20.70687181,169.03,168.96,47.71072207]
[1748541261930,21.42639893,169.01,168.96,47.71072207]
[1748541262936,21.42639893,169.0,168.96,26.0]
[1748541263638,27.34390884,168.99,168.94,47.71072207]
[1748541264294,27.34390884,168.99,168.94,26.28432314]
[1748541264524,27.34390884,168.99,168.94,47.71072207]
[1748541265629,5.91750991,168.99,168.95,21.42639893]
[1748541266027,5.91750991,168.99,168.96,21.42639893]
[1748541266236,5.91750991,168.99,168.97,21.42639893]
[1748541267105,27.34250849,169.03,168.98,21.42639893]
[1748541267305,42.1327824,169.03,168.98,21.42639893]
[1748541267515,21.42639893,169.02,168.97,21.42639893]
[1748541268136,20.70638347,169.03,168.98,21.42639893]
[1748541268137,5.91680965,169.01,168.98,21.42639893]
[1748541269009,5.91680965,169.01,168.97,21.42639893]
[1748541270300,20.70883379,169.01,168.94,55.58432314]
[1748541270502,42.13523272,169.01,168.95,21.42639893]
[1748541270909,42.13523272,169.01,168.96,21.42639893]
[1748541271230,5.91680965,169.01,168.96,21.42639893]
[1748541271417,5.91680965,169.01,168.99,21.42639893]
[1748541271611,5.91610956,169.03,169.0,21.42639893]
[1748541271822,5.91505974,169.06,169.02,21.42639893]
[1748541272012,5.91505974,169.06,169.03,21.42639893]
[1748541272229,5.91505974,169.06,169.01,0.28432314]
[1748541272408,27.34145867,169.06,169.01,21.71072207]
[1748541273231,27.34145867,169.06,169.02,21.42639893]
[1748541273416,5.91505974,169.06,169.02,21.42639893]
[1748541274231,21.42639893,169.05,169.0,47.42639893]
[1748541274454,5.91575958,169.04,169.0,47.42639893]
[1748541275415,20.70515853,169.04,169.0,47.42639893]
[1748541275659,21.42639893,169.03,169.0,26.0]
[1748541276111,5.91470988,169.07,169.03,26.0]
[1748541276307,6.2647,169.12,169.04,0.28432314]
[1748541276512,5.91331086,169.11,169.08,21.42639893]
[1748541277107,5.91331086,169.11,169.04,26.28432314]
[1748541277333,27.33970979,169.11,169.06,21.42639893]
[1748541277949,5.91331086,169.11,169.07,21.42639893]
[1748541278108,18.64964886,169.18,169.07,21.42639893]
[1748541278109,8.1569,169.2,169.1,26.0]
[1748541278309,8.1569,169.2,169.11,0.28432314]
[1748541278310,20.68680181,169.19,169.11,0.28432314]
[1748541278524,21.42639893,169.17,169.12,21.42639893]
[1748541278813,21.42639893,169.17,169.11,21.42639893]
[1748541279039,20.68680181,169.19,169.11,21.42639893]
[1748541279238,21.42639893,169.17,169.11,21.42639893]
[1748541279745,21.42639893,169.17,169.09,0.28432314]
[1748541279920,21.42639893,169.17,169.11,21.42639893]
[1748541280335,20.69169375,169.15,169.11,21.42639893]
[1748541280528,42.11809268,169.15,169.1,21.42639893]
[1748541280731,21.42639893,169.14,169.09,21.42639893]
[1748541281458,21.42639893,169.12,169.07,21.42639893]
[1748541281647,21.42639893,169.12,169.06,26.28432314]
[1748541281815,21.42639893,169.12,169.06,47.71072207]
[1748541282021,21.42639893,169.12,169.07,21.42639893]
[1748541282443,5.91331086,169.11,169.07,21.42639893]
[1748541282654,42.12298694,169.11,169.06,21.42639893]
[1748541282817,21.42639893,169.08,169.04,26.0]
[1748541283021,21.42639893,169.08,169.03,21.42639893]
[1748541283239,21.42639893,169.08,169.0,18.64964886]
[1748541283240,21.42639893,169.09,169.04,21.42639893]
[1748541283747,21.42639893,169.08,169.03,47.42639893]
[1748541283945,21.42639893,169.07,169.02,21.42639893]
[1748541284133,71.68954125,169.11,168.99,1.6573]
[1748541284355,21.42639893,169.06,169.01,26.0]
[1748541284535,5.91540964,169.05,169.01,47.42639893]
[1748541284948,20.70393374,169.05,169.01,47.42639893]
[1748541285752,21.42639893,169.04,168.99,0.28432314]
[1748541285955,21.42639893,169.04,168.99,21.71072207]
[1748541286261,21.42639893,169.04,168.99,47.42639893]
[1748541286429,42.13033267,169.05,169.0,21.42639893]
[1748541288158,5.91540964,169.05,169.02,34.99839188]
[1748541288676,5.91505974,169.06,169.02,34.99839188]
[1748541289359,5.91505974,169.06,169.03,34.99839188]
[1748541289526,5.91505974,169.06,169.04,34.99839188]
[1748541290030,5.91505974,169.06,169.05,34.99839188]
[1748541290958,5.91401029,169.09,169.03,46.558772]
[1748541291136,5.91401029,169.09,169.04,35.28271502]
[1748541291335,20.69903601,169.09,169.06,34.99839188]
[1748541291954,20.69903601,169.09,169.05,34.99839188]
[1748541292465,34.99839188,169.07,169.03,26.0]
[1748541292839,20.70176575,169.07,169.03,60.99839188]
[1748541293634,20.70176575,169.07,169.04,34.99839188]
[1748541293949,20.70176575,169.07,169.03,60.99839188]
[1748541294548,20.70176575,169.07,169.04,34.99839188]
[1748541294744,49.78544775,169.07,169.03,60.99839188]
[1748541295044,49.78544775,169.07,169.02,34.99839188]
[1748541295250,49.78544775,169.07,169.02,60.99839188]
[1748541295429,34.99839188,169.06,169.01,34.99839188]
[1748541297636,5.91540964,169.05,169.02,34.99839188]
[1748541298646,20.70270909,169.06,169.02,34.99839188]
[1748541299436,55.70110097,169.06,169.01,34.99839188]
[1748541299637,55.70110097,169.06,169.0,26.0]
[1748541299638,34.99839188,169.04,169.0,26.0]
[1748541299942,34.99839188,169.02,168.98,29.3]
[1748541300272,56.4170078,169.06,168.98,60.99839188]
[1748541300273,34.99839188,169.03,168.98,60.99839188]
[1748541300878,5.91645959,169.02,168.98,60.99839188]
[1748541301459,20.70760856,169.02,168.98,60.99839188]
[1748541301768,55.70600044,169.02,168.97,34.99839188]
[1748541302746,20.70760856,169.02,168.98,34.99839188]
[1748541303342,20.70760856,169.02,168.97,60.99839188]
[1748541303343,55.70600044,169.02,168.97,60.99839188]
[1748541303763,5.91645959,169.02,169.01,34.99839188]
[1748541304752,20.70456768,169.05,169.01,34.99839188]
[1748541305977,20.70456768,169.05,169.02,34.99839188]
[1748541306546,20.70456768,169.05,169.01,60.99839188]
[1748541306852,55.70295956,169.05,169.01,60.99839188]
[1748541307169,55.70295956,169.05,169.01,26.0]
[1748541307370,34.99839188,169.02,168.98,29.3]
[1748541307549,34.99839188,169.04,168.99,34.99839188]
[1748541307961,55.70295956,169.05,169.0,34.99839188]
[1748541308964,5.91540964,169.05,169.01,34.99839188]
[1748541309168,5.91540964,169.05,169.02,34.99839188]
[1748541309944,5.91540964,169.05,169.02,21.47073469]
[1748541310879,5.91645959,169.02,168.98,29.3]
[1748541311084,21.47073469,169.01,168.96,21.47073469]
[1748541311645,20.70760856,169.02,168.96,21.75505783]
[1748541311846,42.17834325,169.02,168.97,21.47073469]
[1748541312378,21.47073469,169.01,168.96,21.75505783]
[1748541313070,20.71005916,169.0,168.96,21.75505783]
[1748541313663,20.71005916,169.0,168.97,21.47073469]
[1748541314066,20.71005916,169.0,168.97,35.01219207]
[1748541314871,20.71005916,169.0,168.96,35.01219207]
[1748541315059,35.01219207,168.99,168.95,26.0]
[1748541315255,35.01219207,168.98,168.94,29.3]
[1748541315465,35.01219207,168.96,168.87,10.8708542]
[1748541315657,35.01219207,168.95,168.9,35.01219207]
[1748541315856,35.01219207,168.96,168.91,26.0]
[1748541316060,35.01219207,168.96,168.91,61.01219207]
[1748541316577,20.71005916,169.0,168.88,18.79181043]
[1748541316578,35.01219207,168.97,168.92,35.01219207]
[1748541316908,35.01219207,168.97,168.91,61.01219207]
[1748541317059,5.9185606,168.96,168.92,35.01219207]
[1748541317254,40.93075267,168.96,168.92,35.01219207]
[1748541317462,5.9185606,168.96,168.92,35.01219207]
[1748541317958,6.5671,168.95,168.85,29.3]
[1748541318171,6.5671,168.95,168.91,35.01219207]
[1748541318358,20.71496211,168.96,168.91,35.01219207]
[1748541318777,55.72715418,168.96,168.9,26.0]
[1748541319083,55.72715418,168.96,168.89,0.28432314]
[1748541319282,35.01219207,168.95,168.89,0.28432314]
[1748541320283,20.71496211,168.96,168.93,35.01219207]
[1748541320484,85.31995721,168.96,168.91,35.01219207]
[1748541320658,35.01219207,168.94,168.9,26.0]
[1748541321184,20.71824859,168.94,168.9,61.01219207]
[1748541321686,35.01219207,168.93,168.88,35.29651521]
[1748541321892,35.01219207,168.92,168.83,0.14216157]
[1748541322090,35.01219207,168.92,168.87,35.01219207]
[1748541322581,35.01219207,168.9,168.86,26.0]
[1748541323000,35.01219207,168.91,168.86,61.01219207]
[1748541323157,20.72232089,168.9,168.86,61.01219207]
[1748541324101,20.72232089,168.9,168.86,26.0]
[1748541324102,55.73451296,168.9,168.86,26.0]
[1748541324467,35.01219207,168.89,168.86,26.0]
[1748541325064,35.01219207,168.88,168.84,0.28432314]
[1748541325285,5.92171492,168.87,168.84,35.01219207]
[1748541325599,20.72600224,168.87,168.83,35.29651521]
[1748541325765,55.73819431,168.87,168.82,29.3]
[1748541325970,20.72600224,168.87,168.83,35.01219207]
[1748541326155,20.72600224,168.87,168.84,35.01219207]
[1748541326661,5.92171492,168.87,168.85,35.01219207]
[1748541327284,14.80234082,168.9,168.85,35.01219207]
[1748541327482,49.81453289,168.9,168.85,35.01219207]
[1748541328282,35.01219207,168.89,168.85,0.28432314]
[1748541328584,35.01219207,168.87,168.83,26.0]
[1748541328788,35.01219207,168.86,168.81,35.01219207]
[1748541328986,35.01219207,168.87,168.83,26.0]
[1748541329370,5.92206561,168.86,168.83,26.0]
[1748541330382,5.92206561,168.86,168.83,61.01219207]
[1748541330979,5.92206561,168.86,168.84,35.01219207]
[1748541331571,5.92136428,168.88,168.84,35.01219207]
[1748541332199,5.92136428,168.88,168.85,35.29651521]
[1748541332684,5.92136428,168.88,168.85,0.28432314]
[1748541333600,20.72477498,168.88,168.85,0.28432314]
[1748541333794,55.73696705,168.88,168.84,29.3]
[1748541334383,35.01219207,168.85,168.79,32.45803989]
[1748541334586,5.92136428,168.88,168.84,35.01219207]
[1748541334807,5.92136428,168.88,168.85,35.29651521]
[1748541335667,5.92101367,168.89,168.85,35.29651521]
[1748541335988,5.92101367,168.89,168.85,21.79799788]
[1748541336190,42.2372226,168.89,168.85,0.28432314]
[1748541337390,14.80253419,168.89,168.85,0.28432314]
[1748541337593,36.31620893,168.89,168.85,0.28432314]
[1748541337974,36.31620893,168.89,168.84,50.81367474]
[1748541338175,14.80253419,168.89,168.84,29.3]
[1748541338401,36.31620893,168.89,168.84,50.81367474]
[1748541339294,21.51367474,168.88,168.84,29.3]
[1748541339474,21.51367474,168.87,168.84,29.3]
[1748541339679,20.72354786,168.89,168.84,29.3]
[1748541339878,20.72354786,168.89,168.86,21.51367474]
[1748541340981,42.2372226,168.89,168.84,29.3]
[1748541341189,21.51367474,168.87,168.84,29.3]
[1748541341382,27.43574035,168.86,168.82,26.28432314]
[1748541342201,42.24090439,168.86,168.82,26.28432314]
[1748541342993,20.72722965,168.86,168.82,47.79799788]
[1748541343719,21.51367474,168.87,168.82,47.79799788]
[1748541343886,20.72109407,168.91,168.82,47.79799788]
[1748541343887,21.51367474,168.89,168.84,21.51367474]
[1748541344090,50.32265703,168.91,168.82,26.28432314]
[1748541344091,21.51367474,168.88,168.83,21.51367474]
[1748541344288,21.51367474,168.87,168.83,21.51367474]
[1748541344479,21.51367474,168.86,168.82,26.0]
[1748541344684,21.51367474,168.85,168.82,26.0]
[1748541345106,21.51367474,168.86,168.82,26.0]
[1748541345911,42.24213194,168.85,168.81,0.14216157]
[1748541346092,21.51367474,168.83,168.8,26.0]
[1748541346485,21.51367474,168.84,168.8,26.0]
[1748541346886,42.24213194,168.85,168.8,47.51367474]
[1748541348898,21.51367474,168.84,168.8,26.0]
[1748541350699,5.92276711,168.84,168.8,47.51367474]
[1748541350896,5.92276711,168.84,168.82,21.51367474]
[1748541351114,5.92276711,168.84,168.83,21.51367474]
[1748541351611,5.92171492,168.87,168.84,0.28432314]
[1748541351809,5.92171492,168.87,168.85,21.51367474]
[1748541352228,5.92171492,168.87,168.86,21.51367474]
[1748541352429,5.92066311,168.9,168.86,21.51367474]
[1748541352619,5.92066311,168.9,168.87,21.51367474]
[1748541353441,5.92066311,168.9,168.85,0.28432314]
[1748541353610,5.92066311,168.9,168.87,21.51367474]
[1748541354215,42.23599563,168.9,168.86,21.51367474]
[1748541354612,42.23599563,168.9,168.85,21.79799788]
[1748541355711,21.51367474,168.89,168.84,21.51367474]
[1748541356011,42.23599563,168.9,168.85,21.51367474]
[1748541358822,20.72232089,168.9,168.87,21.51367474]
[1748541359324,20.72232089,168.9,168.86,21.51367474]
[1748541359719,42.23599563,168.9,168.85,21.51367474]
[1748541360934,21.51367474,168.88,168.83,26.0]
[1748541361115,21.51367474,168.88,168.83,47.51367474]
[1748541361313,20.72232089,168.9,168.83,26.0]
[1748541361314,21.51367474,168.87,168.83,26.0]
[1748541361933,5.92241634,168.85,168.81,21.51367474]
[1748541362150,5.92241634,168.85,168.81,47.51367474]
[1748541363147,20.7284572,168.85,168.81,47.51367474]
[1748541363328,42.24213194,168.85,168.81,26.0]
[1748541363643,42.24213194,168.85,168.81,47.51367474]
[1748541363644,20.7284572,168.85,168.81,47.51367474]
[1748541364354,20.7284572,168.85,168.81,26.0]
[1748541364645,42.24213194,168.85,168.8,51.09799788]
[1748541365017,42.24213194,168.85,168.8,29.58432314]
[1748541365221,42.24213194,168.85,168.8,51.09799788]
[1748541366949,42.24213194,168.85,168.8,21.79799788]
[1748541367926,21.51367474,168.84,168.79,76.81367474]
[1748541368131,21.51367474,168.84,168.79,21.51367474]
[1748541368331,21.51367474,168.82,168.78,0.28432314]
[1748541368741,5.92381967,168.81,168.78,0.28432314]
[1748541369070,5.92381967,168.81,168.79,21.51367474]
[1748541370458,5.92381967,168.81,168.78,21.79799788]
[1748541370825,5.92346878,168.82,168.78,21.79799788]
[1748541371035,5.92346878,168.82,168.78,0.28432314]
[1748541371233,5.92346878,168.82,168.78,21.79799788]
[1748541371459,50.34948464,168.82,168.74,29.3]
[1748541371642,21.51367474,168.77,168.72,21.51367474]
[1748541371847,21.51367474,168.75,168.7,21.51367474]
[1748541372045,21.51367474,168.75,168.7,47.51367474]
[1748541372448,21.51367474,168.74,168.7,26.0]
[1748541372756,5.92662834,168.73,168.7,26.0]
[1748541374363,5.92662834,168.73,168.7,47.51367474]
[1748541375384,14.81600912,168.74,168.7,47.51367474]
[1748541375385,20.74228623,168.74,168.7,47.51367474]
[1748541375581,42.25596097,168.74,168.7,26.0]
[1748541375789,21.51367474,168.72,168.68,26.0]
[1748541375965,21.51367474,168.72,168.68,47.51367474]
[1748541376779,21.51367474,168.72,168.68,26.0]
[1748541377565,5.92733092,168.71,168.68,26.0]
[1748541377967,5.92733092,168.71,168.68,47.51367474]
[1748541379075,5.92733092,168.71,168.68,26.0]
[1748541379273,5.92733092,168.71,168.68,47.51367474]
[1748541379807,5.92697961,168.72,168.68,47.51367474]
[1748541379978,5.92672885,168.73,168.71,21.51367474]
[1748541381197,5.92672885,168.73,168.69,18.933972]
[1748541381374,5.92672885,168.73,168.71,0.28432314]
[1748541381572,5.92672885,168.73,168.7,21.51367474]
[1748541381774,5.92672885,168.73,168.69,21.79799788]
[1748541382909,21.51367474,168.74,168.7,21.51367474]
[1748541383614,21.51367474,168.74,168.69,21.79799788]
[1748541384200,5.92522367,168.77,168.73,47.51367474]
[1748541384507,6.6393,168.82,168.76,21.51367474]
[1748541384508,5.92381967,168.81,168.76,21.51367474]
[1748541384713,20.73391137,168.81,168.76,21.51367474]
[1748541385015,42.24758611,168.81,168.76,21.51367474]
[1748541385210,42.24758611,168.81,168.77,21.51367474]
[1748541385211,5.92381967,168.81,168.77,21.51367474]
[1748541385825,5.92381967,168.81,168.78,21.51367474]
[1748541386215,5.92381967,168.81,168.77,0.28432314]
[1748541386216,5.92381967,168.81,168.77,47.79799788]
[1748541387306,5.92381967,168.81,168.78,21.51367474]
[1748541387915,5.92381967,168.81,168.77,47.79799788]
[1748541389119,5.92381967,168.81,168.79,21.51367474]
[1748541389322,1.6365,168.84,168.77,26.28432314]
[1748541389323,23.15017474,168.84,168.77,26.28432314]
[1748541389623,20.73105383,168.83,168.78,21.51367474]
[1748541389817,42.24472857,168.83,168.78,21.51367474]
[1748541394106,21.51367474,168.82,168.78,21.51367474]
[1748541394722,5.92381967,168.81,168.78,21.51367474]
[1748541399913,42.2470436,168.81,168.77,55.3]
[1748541400314,21.51367474,168.8,168.77,29.3]
[1748541400518,21.51367474,168.78,168.77,29.3]
[1748541400707,21.51367474,168.78,168.73,21.51367474]
[1748541400907,21.51367474,168.76,168.72,21.51367474]
[1748541401133,21.51367474,168.76,168.71,21.51367474]
[1748541401313,21.51367474,168.76,168.71,47.51367474]
[1748541401720,21.51367474,168.74,168.69,21.51367474]
[1748541402139,21.51367474,168.75,168.71,21.51367474]
[1748541402339,5.92417061,168.8,168.73,21.51367474]
[1748541402340,20.73459715,168.8,168.73,21.51367474]
[1748541402537,21.51367474,168.78,168.73,21.51367474]
[1748541403422,27.43889841,168.77,168.72,21.51367474]
[1748541404032,27.43889841,168.77,168.7,26.28432314]
[1748541404337,21.51367474,168.76,168.72,0.28432314]
[1748541404924,20.73828286,168.77,168.7,26.0]
[1748541404925,21.51367474,168.74,168.7,26.0]
[1748541405122,21.51367474,168.74,168.69,21.51367474]
[1748541405345,5.92697961,168.72,168.69,0.28432314]
[1748541406217,5.92697961,168.72,168.68,47.51367474]
[1748541406218,42.25810337,168.72,168.68,47.51367474]
[1748541406719,42.25810337,168.72,168.66,1.5112]
[1748541406720,21.51367474,168.71,168.66,1.5112]
[1748541406925,21.51367474,168.71,168.66,21.51367474]
[1748541407240,42.25810337,168.72,168.67,21.51367474]
[1748541407417,5.92697961,168.72,168.69,21.51367474]
[1748541407838,5.92697961,168.72,168.67,21.51367474]
[1748541407839,27.44065435,168.72,168.67,21.51367474]
[1748541408639,21.51367474,168.71,168.66,47.79799788]
[1748541408841,21.51367474,168.69,168.66,26.0]
[1748541409019,20.74442863,168.72,168.66,26.0]
[1748541409223,21.51367474,168.7,168.66,26.0]
[1748541409626,5.92803367,168.69,168.66,26.0]
[1748541411633,21.51367474,168.71,168.66,47.51367474]
[1748541412163,20.74442863,168.72,168.66,47.51367474]
[1748541412369,42.25810337,168.72,168.68,21.51367474]
[1748541412571,5.92697961,168.72,168.69,21.51367474]
[1748541413642,5.92697961,168.72,168.7,0.28432314]
[1748541414370,5.92697961,168.72,168.69,0.28432314]
[1748541415182,5.92697961,168.72,168.69,21.79799788]
[1748541415480,5.92697961,168.72,168.69,0.28432314]
[1748541415974,27.44065435,168.72,168.69,0.28432314]
[1748541416359,42.25810337,168.72,168.68,0.28432314]
[1748541417467,21.51367474,168.71,168.66,47.51367474]
[1748541417768,21.51367474,168.71,168.67,0.28432314]
[1748541417970,5.92768227,168.7,168.67,21.79799788]
[1748541419810,5.92768227,168.7,168.68,21.51367474]
[1748541420106,5.92733092,168.71,168.68,21.51367474]
[1748541420403,5.92733092,168.71,168.7,47.51367474]
[1748541421572,5.92733092,168.71,168.7,26.0]
[1748541422099,5.92662834,168.73,168.7,47.51367474]
[1748541423176,9.8,168.77,168.72,21.51367474]
[1748541423177,5.92557478,168.76,168.72,21.51367474]
[1748541423498,20.73951173,168.76,168.71,0.28432314]
[1748541423700,21.51367474,168.75,168.71,0.28432314]
[1748541424204,5.92627711,168.74,168.71,0.28432314]
[1748541424701,9.8,168.77,168.71,0.28432314]
[1748541424702,6.1339,168.78,168.71,19.07613357]
[1748541425004,21.51367474,168.79,168.74,21.79799788]
[1748541425500,20.73336886,168.81,168.76,21.51367474]
[1748541425796,42.2470436,168.81,168.76,21.51367474]
[1748541426301,21.51367474,168.8,168.75,21.51367474]
[1748541426673,21.51367474,168.79,168.74,51.09799788]
[1748541426892,21.51367474,168.78,168.74,29.58432314]
[1748541427622,58.31367474,168.78,168.74,29.58432314]
[1748541428206,5.92522367,168.77,168.74,29.3]
[1748541428406,27.43889841,168.77,168.73,26.0]
[1748541429806,14.80987142,168.81,168.75,21.51367474]
[1748541430005,16.2281,168.82,168.77,21.79799788]
[1748541430212,36.8,168.81,168.78,21.51367474]
[1748541431315,36.8,168.81,168.77,21.79799788]
[1748541432011,36.8,168.81,168.78,21.51367474]
[1748541432324,5.92417061,168.8,168.77,21.79799788]
[1748541432496,42.24827189,168.8,168.76,26.0]
[1748541432697,5.92417061,168.8,168.76,47.51367474]
[1748541433224,5.92417061,168.8,168.77,21.79799788]
[1748541434001,5.92417061,168.8,168.77,0.28432314]
[1748541434201,42.24827189,168.8,168.76,26.0]
[1748541434621,42.24827189,168.8,168.76,47.51367474]
[1748541436252,20.73459715,168.8,168.76,47.51367474]
[1748541436432,42.24827189,168.8,168.76,26.0]
[1748541436630,21.51367474,168.79,168.75,29.3]
[1748541436959,58.31367474,168.78,168.75,29.3]
[1748541437455,21.51367474,168.77,168.75,29.3]
[1748541437625,36.8,168.78,168.7,50.81367474]
[1748541437626,21.51367474,168.76,168.7,50.81367474]
[1748541437954,36.78,168.75,168.72,21.51367474]
[1748541438335,5.92627711,168.74,168.72,21.51367474]
[1748541438954,5.92627711,168.74,168.71,21.51367474]
[1748541439338,5.92627711,168.74,168.7,55.3]
[1748541439525,5.92627711,168.74,168.71,21.79799788]
[1748541440240,5.92627711,168.74,168.72,21.51367474]
[1748541440438,5.92627711,168.74,168.71,21.79799788]
[1748541443472,5.92627711,168.74,168.72,21.51367474]
[1748541443845,5.92627711,168.74,168.71,51.09799788]
[1748541444858,5.92627711,168.74,168.71,29.3]
[1748541445545,5.92627711,168.74,168.71,50.81367474]
[1748541445940,5.92627711,168.74,168.71,29.3]
[1748541446154,21.51367474,168.72,168.61,3.16141126]
[1748541446443,21.51367474,168.68,168.63,21.51367474]
[1748541446635,58.31367474,168.67,168.63,18.64964886]
[1748541446853,36.8,168.67,168.63,21.51367474]
[1748541447058,5.9290881,168.66,168.63,21.51367474]
[1748541447658,5.9290881,168.66,168.64,0.28432314]
[1748541448071,5.9290881,168.66,168.64,21.79799788]
[1748541448951,5.9290881,168.66,168.64,0.14216157]
[1748541449274,5.9290881,168.66,168.62,26.14216157]
[1748541449275,5.9290881,168.66,168.62,47.51367474]
[1748541449570,20.75180836,168.66,168.62,47.51367474]
[1748541450262,42.2654831,168.66,168.62,26.0]
[1748541450583,42.2654831,168.66,168.61,21.51367474]
[1748541451156,21.51367474,168.65,168.6,26.0]
[1748541451372,36.78,168.64,168.6,47.51367474]
[1748541451679,36.78,168.64,168.61,21.51367474]
[1748541452556,5.93014291,168.63,168.61,21.51367474]
[1748541452757,5.93014291,168.63,168.6,55.3]
[1748541452964,5.93014291,168.63,168.61,21.51367474]
[1748541455565,5.93014291,168.63,168.61,50.81367474]
[1748541457079,5.93014291,168.63,168.61,29.3]
[1748541457294,5.93014291,168.63,168.61,50.81367474]
[1748541457675,5.93014291,168.63,168.61,29.3]
[1748541457891,5.93014291,168.63,168.61,50.81367474]
[1748541458401,5.93014291,168.63,168.61,29.3]
[1748541460592,5.93014291,168.63,168.61,50.81367474]
[1748541462097,5.93014291,168.63,168.61,29.3]
[1748541464489,5.93014291,168.63,168.61,50.81367474]
[1748541465496,5.93014291,168.63,168.61,29.3]
[1748541467376,5.93014291,168.63,168.6,47.51367474]
[1748541468529,5.93014291,168.63,168.6,26.0]
[1748541468677,5.93014291,168.63,168.6,21.51367474]
[1748541471503,5.93014291,168.63,168.61,21.51367474]
[1748541473601,5.93014291,168.63,168.6,0.28432314]
[1748541473806,5.93014291,168.63,168.6,21.79799788]
[1748541474210,5.93014291,168.63,168.61,21.51367474]
[1748541476019,5.93014291,168.63,168.6,0.28432314]
[1748541476330,5.93014291,168.63,168.61,21.51367474]
[1748541476493,5.92992351,168.64,168.62,21.79799788]
[1748541476697,36.86,168.66,168.63,21.79799788]
[1748541476902,36.86,168.66,168.64,21.51367474]
[1748541477097,36.86,168.66,168.64,20.51367474]
[1748541477409,36.86,168.66,168.64,21.51367474]
[1748541478117,42.78873658,168.67,168.64,21.51367474]
[1748541478725,42.78873658,168.67,168.63,51.09799788]
[1748541479699,42.78873658,168.67,168.63,29.58432314]
[1748541479925,42.78873658,168.67,168.63,51.09799788]
[1748541481397,42.78873658,168.67,168.63,29.3]
[1748541481398,21.51367474,168.65,168.63,29.3]
[1748541482125,21.51367474,168.65,168.6,21.51367474]
[1748541482325,36.86,168.66,168.6,21.51367474]
[1748541482526,21.51367474,168.65,168.6,21.51367474]
[1748541483032,5.92979127,168.64,168.6,21.51367474]
[1748541483237,5.92979127,168.64,168.6,29.3]
[1748541483238,58.35367474,168.63,168.6,29.3]
[1748541483415,36.84,168.63,168.6,29.3]
[1748541485027,5.9304946,168.62,168.6,29.3]
[1748541485731,5.9304946,168.62,168.58,76.81367474]
[1748541487446,5.9304946,168.62,168.59,21.51367474]
[1748541487747,5.9304946,168.62,168.58,55.3]
[1748541487947,42.27040584,168.62,168.58,29.3]
[1748541488954,20.7567311,168.62,168.58,50.81367474]
[1748541489743,5.9304946,168.62,168.59,21.51367474]
[1748541490150,42.7904946,168.62,168.59,21.51367474]
[1748541490730,42.7904946,168.62,168.59,47.51367474]
[1748541490938,42.7904946,168.62,168.6,21.51367474]
[1748541491762,36.86,168.63,168.61,21.51367474]
[1748541491972,5.92979127,168.64,168.62,21.51367474]
[1748541492135,42.78979127,168.64,168.63,21.51367474]
[1748541492340,5.92979127,168.64,168.63,21.51367474]
[1748541492554,5.92979127,168.64,168.62,21.51367474]
[1748541493155,5.92979127,168.64,168.61,21.51367474]
[1748541494576,20.75426944,168.64,168.61,21.51367474]
[1748541494951,20.75426944,168.64,168.61,18.64964886]
[1748541495374,20.75426944,168.64,168.6,21.79799788]
[1748541495585,42.26794418,168.64,168.59,76.81367474]
[1748541496567,21.51367474,168.6,168.56,18.64964886]
[1748541496768,36.86,168.59,168.56,18.64964886]
[1748541496972,36.86,168.59,168.55,60.51367474]
[1748541497167,21.51367474,168.58,168.55,29.3]
[1748541497784,20.76165617,168.58,168.55,29.3]
[1748541498647,20.76165617,168.58,168.54,40.1633236]